fUST/lending_fUST_20250902
["ID","MTS","AMOUNT","RATE_DAILY","PERIOD"]
[382970991,1756788654375,-696.78,0.00013972,2]
[382970992,1756788654384,-480.0,0.00013972,2]
[382970993,1756788654394,-480.8637345,0.00013972,2]
[382970994,1756788654404,-299.78640404,0.00013972,2]
[382970995,1756788654414,-480.0,0.00013972,2]
[382970996,1756788654424,-480.0,0.00013972,2]
[382970997,1756788654434,-482.56170617,0.00013972,2]
[382970998,1756788654443,-480.0,0.00013972,2]
[382970999,1756788654453,-482.93766166,0.00013972,2]
[382971000,1756788654462,-480.0,0.00013972,2]
[382971001,1756788654472,-480.0,0.00013972,2]
[382971002,1756788654482,-480.0,0.00013972,2]
[382971003,1756788654492,-480.0,0.00013972,2]
[382971004,1756788654501,-480.0,0.00013972,2]
[382971005,1756788654511,-480.0,0.00013972,2]
[382971006,1756788654520,-480.0,0.00013972,2]
[382971007,1756788654530,-480.0,0.00013972,2]
[382971008,1756788654539,-231.60916771,0.00013972,2]
[382971009,1756788654548,-480.0,0.00013972,2]
[382971010,1756788654562,-480.0,0.00013972,2]
[382971011,1756788654572,-480.0,0.00013972,2]
[382971012,1756788654581,-482.99555678,0.00013972,2]
[382971013,1756788654590,-482.8007417,0.00013972,2]
[382971014,1756788654600,-483.75501225,0.00013972,2]
[382971015,1756788654609,-594.08,0.00013972,2]
[382971016,1756788654619,-482.76695736,0.00013972,2]
[382971017,1756788654629,-480.0,0.00013972,2]
[382971018,1756788654638,-480.0,0.00013972,2]
[382971019,1756788654648,-1497.24,0.00013972,2]
[382971020,1756788654658,-538.25,0.00013972,2]
[382971021,1756788654667,-480.0,0.00013972,2]
[382971022,1756788654677,-504.50796401,0.00013972,2]
[382971023,1756788654686,-300.1905687,0.00013972,2]
[382971024,1756788654696,-493.89258674,0.00013972,2]
[382971025,1756788654706,-486.55,0.00013972,2]
[382971026,1756788654716,-480.0,0.00013972,2]
[382971027,1756788654725,-234.21836268,0.00013972,2]
[382971028,1756788654735,-480.0,0.00013972,2]
[382971029,1756788654745,-480.0,0.00013972,2]
[382971030,1756788654754,-483.51941576,0.00013972,2]
[382971031,1756788654764,-480.0,0.00013972,2]
[382971032,1756788654774,-480.0,0.00013972,2]
[382971033,1756788654783,-480.0,0.00013972,2]
[382971034,1756788654793,-480.0,0.00013972,2]
[382971035,1756788654803,-480.0,0.00013972,2]
[382971036,1756788654812,-484.70716352,0.00013972,2]
[382971037,1756788654822,-480.0,0.00013972,2]
[382971038,1756788654831,-488.33,0.00013972,2]
[382971039,1756788654841,-480.0,0.00013972,2]
[382971040,1756788654851,-480.0,0.00013972,2]
[382971041,1756788654860,-4204.09,0.00013972,2]
[382971042,1756788654869,-1004.58,0.00013972,2]
[382971043,1756788654879,-1515.31,0.00013972,2]
[382971044,1756788654889,-480.0,0.00013972,2]
[382971045,1756788654899,-580.64,0.00013972,2]
[382971046,1756788654909,-480.0,0.00013972,2]
[382971047,1756788654918,-987.94,0.00013972,2]
[382971048,1756788654928,-1024.13,0.00013972,2]
[382971049,1756788654938,-642.88,0.00013972,2]
[382971050,1756788654948,-480.0,0.00013972,2]
[382971051,1756788654957,-480.0,0.00013972,2]
[382971052,1756788654967,-480.0,0.00013972,2]
[382971053,1756788654976,-488.0,0.00013972,2]
[382971054,1756788654987,-307.78507829,0.00013972,2]
[382971055,1756788654999,-1198.34,0.00013972,2]
[382971056,1756788655009,-480.0,0.00013972,2]
[382971057,1756788655019,-514.67,0.00013972,2]
[382971058,1756788655029,-676.81,0.00013972,2]
[382971059,1756788655039,-480.0,0.00013972,2]
[382971060,1756788655049,-480.0,0.00013972,2]
[382971061,1756788655060,-583.91,0.00013972,2]
[382971062,1756788655070,-480.0,0.00013972,2]
[382971063,1756788655081,-480.0,0.00013972,2]
[382971064,1756788655091,-480.0,0.00013972,2]
[382971065,1756788655101,-528.86113271,0.00013972,2]
[382971066,1756788655113,-483.16149644,0.00013972,2]
[382971067,1756788655125,-578.92716098,0.00013972,2]
[382971068,1756788655136,-480.0,0.00013972,2]
[382971069,1756788655145,-633.71,0.00013972,2]
[382971070,1756788655156,-480.0,0.00013972,2]
[382971071,1756788655168,-655.97,0.00013972,2]
[382971072,1756788655179,-480.0,0.00013972,2]
[382971073,1756788655191,-480.0,0.00013972,2]
[382971074,1756788655202,-4491.43,0.00013972,2]
[382971075,1756788655214,-480.0,0.00013972,2]
[382971076,1756788655352,-480.0,0.00013972,2]
[382971077,1756788655380,-1417.75,0.00013972,2]
[382971078,1756788655390,-480.0,0.00013972,2]
[382971079,1756788655401,-561.66644274,0.00013972,2]
[382971080,1756788655411,-480.0,0.00013972,2]
[382971081,1756788655420,-481.39132092,0.00013972,2]
[382971082,1756788655431,-495.97,0.00013972,2]
[382971083,1756788655440,-1803.69,0.00013972,2]
[382971084,1756788655450,-221.9632096,0.00013972,2]
[382971085,1756788655462,-480.0,0.00013972,2]
[382971086,1756788655471,-480.0,0.00013972,2]
[382971087,1756788655480,-2238.46,0.00013972,2]
[382971088,1756788655489,-480.0,0.00013972,2]
[382971089,1756788655499,-534.21,0.00013972,2]
[382971090,1756788655508,-480.0,0.00013972,2]
[382971091,1756788655518,-868.83,0.00013972,2]
[382971092,1756788655527,-1520.85,0.00013972,2]
[382971093,1756788655536,-480.0,0.00013972,2]
[382971094,1756788655546,-480.0,0.00013972,2]
[382971095,1756788655559,-711.03,0.00013972,2]
[382971096,1756788655569,-310.3806915,0.00013972,2]
[382971097,1756788655579,-507.41,0.00013972,2]
[382971098,1756788655589,-1133.24,0.00013972,2]
[382971099,1756788655600,-480.0,0.00013972,2]
[382971100,1756788655610,-480.0,0.00013972,2]
[382971101,1756788655619,-485.31323702,0.00013972,2]
[382971102,1756788655630,-348.59882401,0.00013972,2]
[382971103,1756788655640,-480.0,0.00013972,2]
[382971104,1756788655650,-512.11,0.00013972,2]
[382971105,1756788655661,-480.0,0.00013972,2]
[382971106,1756788655671,-529.29,0.00013972,2]
[382971107,1756788655680,-508.5,0.00013972,2]
[382971108,1756788655691,-484.44930049,0.00013972,2]
[382971109,1756788655701,-480.0,0.00013972,2]
[382971110,1756788655711,-480.0,0.00013972,2]
[382971111,1756788655721,-480.0,0.00013972,2]
[382971112,1756788655731,-847.13,0.00013972,2]
[382971113,1756788655740,-480.0,0.00013972,2]
[382971114,1756788655750,-480.0,0.00013972,2]
[382971115,1756788655760,-485.23423256,0.00013972,2]
[382971116,1756788655769,-187.82247265,0.00013972,2]
[382971117,1756788655778,-480.0,0.00013972,2]
[382971118,1756788655789,-601.52,0.00013972,2]
[382971119,1756788655799,-566.97,0.00013972,2]
[382971120,1756788655808,-480.0,0.00013972,2]
[382971121,1756788655818,-494.87,0.00013972,2]
[382971122,1756788655828,-480.0,0.00013972,2]
[382971123,1756788655837,-1602.18,0.00013972,2]
[382971124,1756788655847,-827.19,0.00013972,2]
[382971125,1756788655856,-328.68915224,0.00013972,2]
[382971126,1756788655866,-480.0,0.00013972,2]
[382971127,1756788655877,-480.0,0.00013972,2]
[382971128,1756788655887,-480.0,0.00013972,2]
[382971129,1756788655896,-480.0,0.00013972,2]
[382971130,1756788655905,-2342.1,0.00013972,2]
[382971131,1756788655915,-168.0,0.00013974,2]
[382971132,1756788655925,-5000.0,0.00013996,2]
[382971133,1756788655934,-151.0,0.00014,2]
[382971134,1756788655944,-379.1314386,0.00014,2]
[382971135,1756788655954,-11132.0,0.00014,2]
[382971136,1756788655963,-168.0,0.00014019,2]
[382971137,1756788655974,-168.0,0.0001403,2]
[382971138,1756788655985,-3000.0,0.0001404,2]
[382971139,1756788655995,-500.0,0.00014062,2]
[382971140,1756788656004,-5000.0,0.00014082,2]
[382971141,1756788656015,-151.0,0.000141,2]
[382971142,1756788656025,-168.0,0.00014101,2]
[382971143,1756788656036,-151.0,0.00014105,2]
[382971144,1756788656045,-151.0,0.00014105,2]
[382971145,1756788656056,-256.28474425,0.0001411,2]
[382971146,1756788656067,-168.0,0.00014133,2]
[382971147,1756788656078,-181.3680031,0.00014137,2]
[382971148,1756788656088,-161.4210731,0.00014137,2]
[382971149,1756788656098,-161.4210731,0.00014137,2]
[382971150,1756788656108,-161.4210731,0.00014137,2]
[382971151,1756788656119,-158.089206,0.00014137,2]
[382971152,1756788656130,-168.0,0.00014143,2]
[382971153,1756788656139,-1430.0,0.0001415,2]
[382971154,1756788656149,-5000.0,0.00014162,2]
[382971155,1756788656160,-151.0,0.00014209,2]
[382971156,1756788656171,-151.38261753,0.00014209,2]
[382971157,1756788656182,-151.0,0.00014209,2]
[382971158,1756788656192,-248.02394506,0.00014209,2]
[382971159,1756788656202,-1056.73955562,0.00014211,2]
[382971160,1756788656212,-1000.0,0.00014221,2]
[382971161,1756788656221,-1000.0,0.00014221,2]
[382971162,1756788656233,-1000.0,0.00014221,2]
[382971163,1756788656243,-1000.0,0.00014221,2]
[382971164,1756788656255,-350.54216007,0.00014221,2]
[382971165,1756788656265,-1000.0,0.00014221,2]
[382971166,1756788656275,-1000.0,0.00014221,2]
[382971167,1756788656286,-1000.0,0.00014221,2]
[382971168,1756788656296,-1000.0,0.00014221,2]
[382971169,1756788656306,-1000.0,0.00014221,2]
[382971170,1756788656315,-1000.0,0.00014221,2]
[382971171,1756788656325,-151.0,0.00014226,2]
[382971172,1756788656335,-151.0,0.00014226,2]
[382971173,1756788656345,-151.0,0.00014226,2]
[382971174,1756788656355,-541.42,0.00014246,2]
[382971175,1756788656365,-521.40695424,0.00014246,2]
[382971176,1756788656375,-480.0,0.00014246,2]
[382971177,1756788656384,-212.00023309,0.00014246,2]
[382971178,1756788656394,-480.0,0.00014246,2]
[382971179,1756788656403,-480.0,0.00014246,2]
[382971180,1756788656413,-480.0,0.00014246,2]
[382971181,1756788656422,-480.0,0.00014246,2]
[382971182,1756788656432,-480.0,0.00014246,2]
[382971183,1756788656441,-480.0,0.00014246,2]
[382971184,1756788656450,-535.89604807,0.00014246,2]
[382971185,1756788656461,-480.0,0.00014246,2]
[382971186,1756788656470,-217.87550271,0.00014246,2]
[382971187,1756788656480,-480.0,0.00014246,2]
[382971188,1756788656490,-492.68625204,0.00014246,2]
[382971189,1756788656500,-480.0,0.00014246,2]
[382971190,1756788656509,-530.94,0.00014246,2]
[382971191,1756788656519,-480.0,0.00014246,2]
[382971192,1756788656529,-513.32,0.00014246,2]
[382971193,1756788656539,-249.30921564,0.00014246,2]
[382971194,1756788656549,-269.95777203,0.00014246,2]
[382971195,1756788656563,-480.0,0.00014246,2]
[382971196,1756788656572,-480.0,0.00014246,2]
[382971197,1756788656582,-480.0,0.00014246,2]
[382971198,1756788656591,-480.0,0.00014246,2]
[382971199,1756788656601,-480.0,0.00014246,2]
[382971200,1756788656610,-480.0,0.00014246,2]
[382971201,1756788656620,-519.44,0.00014246,2]
[382971202,1756788656630,-480.0,0.00014246,2]
[382971203,1756788656640,-361.75342462,0.00014246,2]
[382971204,1756788656649,-480.0,0.00014246,2]
[382971205,1756788656661,-480.0,0.00014246,2]
[382971206,1756788656672,-512.49,0.00014246,2]
[382971207,1756788656682,-480.0,0.00014246,2]
[382971208,1756788656692,-483.75239138,0.00014246,2]
[382971209,1756788656702,-480.0,0.00014246,2]
[382971210,1756788656713,-480.0,0.00014246,2]
[382971211,1756788656723,-495.86,0.00014246,2]
[382971212,1756788656733,-480.0,0.00014246,2]
[382971213,1756788656742,-480.0,0.00014246,2]
[382971214,1756788656752,-480.0,0.00014246,2]
[382971215,1756788656761,-480.0,0.00014246,2]
[382971216,1756788656771,-503.05897587,0.00014246,2]
[382971217,1756788656781,-571.71,0.00014246,2]
[382971218,1756788656791,-480.0,0.00014246,2]
[382971219,1756788656801,-480.0,0.00014246,2]
[382971220,1756788656811,-643.0,0.00014246,2]
[382971221,1756788656820,-480.0,0.00014246,2]
[382971222,1756788656830,-480.0,0.00014246,2]
[382971223,1756788656840,-541.37,0.00014246,2]
[382971224,1756788656850,-480.0,0.00014246,2]
[382971225,1756788656859,-582.31,0.00014246,2]
[382971226,1756788656869,-480.0,0.00014246,2]
[382971227,1756788656878,-696.78,0.00014246,2]
[382971228,1756788656886,-267.88819953,0.00014246,2]
[382971229,1756788656894,-480.0,0.00014246,2]
[382971230,1756788656901,-481.85322835,0.00014246,2]
[382971231,1756788656910,-480.0,0.00014246,2]
[382971232,1756788656917,-480.0,0.00014246,2]
[382971233,1756788656925,-480.0,0.00014246,2]
[382971234,1756788656936,-326.01547701,0.00014246,2]
[382971235,1756788656946,-480.0,0.00014246,2]
[382971236,1756788656957,-308.13303687,0.00014246,2]
[382971237,1756788656966,-251.77709901,0.00014246,2]
[382971238,1756788656975,-480.0,0.00014246,2]
[382971239,1756788656985,-480.0,0.00014246,2]
[382971240,1756788656995,-480.0,0.00014246,2]
[382971241,1756788657005,-480.0,0.00014246,2]
[382971242,1756788657015,-480.0,0.00014246,2]
[382971243,1756788657025,-594.08,0.00014246,2]
[382971244,1756788657035,-480.0,0.00014246,2]
[382971245,1756788657046,-480.0,0.00014246,2]
[382971246,1756788657056,-1497.24,0.00014246,2]
[382971247,1756788657067,-538.25,0.00014246,2]
[382971248,1756788657077,-480.0,0.00014246,2]
[382971249,1756788657087,-486.55,0.00014246,2]
[382971250,1756788657097,-546.1786008,0.00014246,2]
[382971251,1756788657107,-480.0,0.00014246,2]
[382971252,1756788657117,-480.0,0.00014246,2]
[382971253,1756788657128,-488.75987478,0.00014246,2]
[382971254,1756788657138,-480.0,0.00014246,2]
[382971255,1756788657148,-480.0,0.00014246,2]
[382971256,1756788657159,-480.0,0.00014246,2]
[382971257,1756788657168,-546.64705247,0.00014246,2]
[382971258,1756788657179,-290.82115292,0.00014246,2]
[382971259,1756788657189,-488.33,0.00014246,2]
[382971260,1756788657199,-480.0,0.00014246,2]
[382971261,1756788657209,-480.0,0.00014246,2]
[382971262,1756788657218,-4204.09,0.00014246,2]
[382971263,1756788657228,-1004.58,0.00014246,2]
[382971264,1756788657236,-1515.31,0.00014246,2]
[382971265,1756788657245,-480.0,0.00014246,2]
[382971266,1756788657254,-580.64,0.00014246,2]
[382971267,1756788657263,-480.0,0.00014246,2]
[382971268,1756788657273,-987.94,0.00014246,2]
[382971269,1756788657282,-1024.13,0.00014246,2]
[382971270,1756788657292,-642.88,0.00014246,2]
[382971271,1756788657302,-480.0,0.00014246,2]
[382971272,1756788657311,-480.0,0.00014246,2]
[382971273,1756788657321,-480.0,0.00014246,2]
[382971274,1756788657330,-488.0,0.00014246,2]
[382971275,1756788657340,-1198.34,0.00014246,2]
[382971276,1756788657350,-480.0,0.00014246,2]
[382971277,1756788657359,-514.67,0.00014246,2]
[382971278,1756788657368,-676.81,0.00014246,2]
[382971279,1756788657378,-480.0,0.00014246,2]
[382971280,1756788657388,-480.0,0.00014246,2]
[382971281,1756788657398,-583.91,0.00014246,2]
[382971282,1756788657407,-480.0,0.00014246,2]
[382971283,1756788657417,-480.0,0.00014246,2]
[382971284,1756788657427,-480.0,0.00014246,2]
[382971285,1756788657436,-480.0,0.00014246,2]
[382971286,1756788657445,-633.71,0.00014246,2]
[382971287,1756788657455,-480.0,0.00014246,2]
[382971288,1756788657464,-655.97,0.00014246,2]
[382971289,1756788657473,-272.37319001,0.00014246,2]
[382971290,1756788657483,-480.0,0.00014246,2]
[382971291,1756788657497,-4491.43,0.00014246,2]
[382971292,1756788657507,-480.0,0.00014246,2]
[382971293,1756788657518,-480.0,0.00014246,2]
[382971294,1756788657529,-1417.75,0.00014246,2]
[382971295,1756788657539,-320.86650138,0.00014246,2]
[382971296,1756788657550,-480.0,0.00014246,2]
[382971297,1756788657564,-495.97,0.00014246,2]
[382971298,1756788657575,-1803.69,0.00014246,2]
[382971299,1756788657584,-480.0,0.00014246,2]
[382971300,1756788657594,-480.0,0.00014246,2]
[382971301,1756788657605,-2238.46,0.00014246,2]
[382971302,1756788657617,-480.0,0.00014246,2]
[382971303,1756788657627,-534.21,0.00014246,2]
[382971304,1756788657639,-480.0,0.00014246,2]
[382971305,1756788657649,-868.83,0.00014246,2]
[382971306,1756788657659,-1520.85,0.00014246,2]
[382971307,1756788657668,-480.0,0.00014246,2]
[382971308,1756788657678,-482.55395298,0.00014246,2]
[382971309,1756788657688,-711.03,0.00014246,2]
[382971310,1756788657698,-507.41,0.00014246,2]
[382971311,1756788657708,-1133.24,0.00014246,2]
[382971312,1756788657717,-480.0,0.00014246,2]
[382971313,1756788657763,-480.0,0.00014246,2]
[382971314,1756788657773,-480.0,0.00014246,2]
[382971315,1756788657783,-512.11,0.00014246,2]
[382971316,1756788657791,-322.56007319,0.00014246,2]
[382971317,1756788657799,-529.29,0.00014246,2]
[382971318,1756788657808,-508.5,0.00014246,2]
[382971319,1756788657817,-480.0,0.00014246,2]
[382971320,1756788657826,-480.0,0.00014246,2]
[382971321,1756788657837,-480.0,0.00014246,2]
[382971322,1756788657846,-847.13,0.00014246,2]
[382971323,1756788657855,-480.0,0.00014246,2]
[382971324,1756788657865,-346.81850079,0.00014246,2]
[382971325,1756788657875,-601.52,0.00014246,2]
[382971326,1756788657885,-480.0,0.00014246,2]
[382971327,1756788657895,-566.97,0.00014246,2]
[382971328,1756788657905,-494.87,0.00014246,2]
[382971329,1756788657917,-480.0,0.00014246,2]
[382971330,1756788657929,-1602.18,0.00014246,2]
[382971331,1756788657940,-827.19,0.00014246,2]
[382971332,1756788657951,-480.0,0.00014246,2]
[382971333,1756788657962,-185.82905496,0.00014246,2]
[382971334,1756788657970,-480.0,0.00014246,2]
[382971335,1756788657979,-345.50721704,0.00014246,2]
[382971336,1756788657986,-151.0,0.000143,2]
[382971337,1756788657994,-168.0,0.00014358,2]
[382971338,1756788658003,-151.0,0.00014379,2]
[382971339,1756788658012,-161.59247239,0.00014379,2]
[382971340,1756788658021,-151.0,0.000144,2]
[382971341,1756788658030,-151.0,0.000144,2]
[382971342,1756788658039,-151.0,0.000144,2]
[382971343,1756788658048,-160.0,0.0001444,2]
[382971344,1756788658057,-420.0,0.00014454,2]
[382971345,1756788658067,-168.0,0.00014459,2]
[382971346,1756788658076,-151.0,0.00014483,2]
[382971347,1756788658086,-246.05719904,0.00014483,2]
[382971348,1756788658095,-500.0,0.00014498,2]
[382971349,1756788658104,-245.0,0.000145,2]
[382971350,1756788658114,-245.0,0.000145,2]
[382971351,1756788658124,-245.0,0.000145,2]
[382971352,1756788658134,-957.0,0.000145,2]
[382971353,1756788658143,-541.42,0.0001452,2]
[382971354,1756788658152,-480.0,0.0001452,2]
[382971355,1756788658162,-275.34378528,0.0001452,2]
[382971356,1756788658175,-480.0,0.0001452,2]
[382971357,1756788658184,-480.0,0.0001452,2]
[382971358,1756788658194,-378.89393458,0.0001452,2]
[382971359,1756788658203,-480.0,0.0001452,2]
[382971360,1756788658212,-299.04830302,0.0001452,2]
[382971361,1756788658221,-480.0,0.0001452,2]
[382971362,1756788658231,-487.32782989,0.0001452,2]
[382971363,1756788658240,-378.8293793,0.0001452,2]
[382971364,1756788658250,-530.94,0.0001452,2]
[382971365,1756788658259,-310.13349874,0.0001452,2]
[382971366,1756788658270,-513.32,0.0001452,2]
[382971367,1756788658280,-480.0,0.0001452,2]
[382971368,1756788658289,-480.0,0.0001452,2]
[382971369,1756788658298,-480.0,0.0001452,2]
[382971370,1756788658307,-480.0,0.0001452,2]
[382971371,1756788658316,-480.0,0.0001452,2]
[382971372,1756788658326,-480.0,0.0001452,2]
[382971373,1756788658335,-519.44,0.0001452,2]
[382971374,1756788658344,-480.0,0.0001452,2]
[382971375,1756788658354,-480.0,0.0001452,2]
[382971376,1756788658363,-480.0,0.0001452,2]
[382971377,1756788658373,-512.49,0.0001452,2]
[382971378,1756788658383,-546.30186287,0.0001452,2]
[382971379,1756788658392,-480.0,0.0001452,2]
[382971380,1756788658405,-480.0,0.0001452,2]
[382971381,1756788658417,-495.86,0.0001452,2]
[382971382,1756788658427,-480.0,0.0001452,2]
[382971383,1756788658436,-480.0,0.0001452,2]
[382971384,1756788658446,-480.0,0.0001452,2]
[382971385,1756788658456,-398.32433585,0.0001452,2]
[382971386,1756788658465,-571.71,0.0001452,2]
[382971387,1756788658474,-480.0,0.0001452,2]
[382971388,1756788658484,-480.0,0.0001452,2]
[382971389,1756788658493,-643.0,0.0001452,2]
[382971390,1756788658502,-480.0,0.0001452,2]
[382971391,1756788658512,-480.0,0.0001452,2]
[382971392,1756788658522,-541.37,0.0001452,2]
[382971393,1756788658531,-480.0,0.0001452,2]
[382971394,1756788658540,-582.31,0.0001452,2]
[382971395,1756788658549,-480.0,0.0001452,2]
[382971396,1756788658563,-696.78,0.0001452,2]
[382971397,1756788658573,-313.87411432,0.0001452,2]
[382971398,1756788658582,-480.0,0.0001452,2]
[382971399,1756788658592,-480.0,0.0001452,2]
[382971400,1756788658604,-278.34529345,0.0001452,2]
[382971401,1756788658618,-480.0,0.0001452,2]
[382971402,1756788658627,-173.82367211,0.0001452,2]
[382971403,1756788658637,-480.0,0.0001452,2]
[382971404,1756788658646,-480.0,0.0001452,2]
[382971405,1756788658655,-480.0,0.0001452,2]
[382971406,1756788658664,-480.0,0.0001452,2]
[382971407,1756788658673,-594.08,0.0001452,2]
[382971408,1756788658682,-480.0,0.0001452,2]
[382971409,1756788658691,-480.0,0.0001452,2]
[382971410,1756788658700,-1497.24,0.0001452,2]
[382971411,1756788658709,-538.25,0.0001452,2]
[382971412,1756788658718,-480.0,0.0001452,2]
[382971413,1756788658727,-486.55,0.0001452,2]
[382971414,1756788658736,-480.0,0.0001452,2]
[382971415,1756788658745,-480.0,0.0001452,2]
[382971416,1756788658754,-480.0,0.0001452,2]
[382971417,1756788658763,-480.0,0.0001452,2]
[382971418,1756788658772,-480.0,0.0001452,2]
[382971419,1756788658781,-488.33,0.0001452,2]
[382971420,1756788658789,-480.0,0.0001452,2]
[382971421,1756788658798,-480.0,0.0001452,2]
[382971422,1756788658808,-4204.09,0.0001452,2]
[382971423,1756788658817,-1004.58,0.0001452,2]
[382971424,1756788658826,-1515.31,0.0001452,2]
[382971425,1756788658835,-480.0,0.0001452,2]
[382971426,1756788658844,-580.64,0.0001452,2]
[382971427,1756788658853,-480.0,0.0001452,2]
[382971428,1756788658862,-987.94,0.0001452,2]
[382971429,1756788658871,-1024.13,0.0001452,2]
[382971430,1756788658880,-642.88,0.0001452,2]
[382971431,1756788658889,-480.0,0.0001452,2]
[382971432,1756788658898,-480.0,0.0001452,2]
[382971433,1756788658908,-480.0,0.0001452,2]
[382971434,1756788658917,-488.0,0.0001452,2]
[382971435,1756788658926,-1198.34,0.0001452,2]
[382971436,1756788658935,-480.0,0.0001452,2]
[382971437,1756788658944,-514.67,0.0001452,2]
[382971438,1756788658953,-676.81,0.0001452,2]
[382971439,1756788658963,-494.746955,0.0001452,2]
[382971440,1756788658972,-480.0,0.0001452,2]
[382971441,1756788658981,-583.91,0.0001452,2]
[382971442,1756788658990,-552.76911621,0.0001452,2]
[382971443,1756788658999,-480.0,0.0001452,2]
[382971444,1756788659008,-480.0,0.0001452,2]
[382971445,1756788659017,-358.62026531,0.0001452,2]
[382971446,1756788659026,-633.71,0.0001452,2]
[382971447,1756788659035,-480.0,0.0001452,2]
[382971448,1756788659044,-655.97,0.0001452,2]
[382971449,1756788659053,-480.0,0.0001452,2]
[382971450,1756788659062,-3650.88938761,0.0001452,2]
[382971451,1756788659218,-840.54061239,0.0001452,2]
[382971452,1756788659228,-480.0,0.0001452,2]
[382971453,1756788659237,-1417.75,0.0001452,2]
[382971454,1756788659246,-480.0,0.0001452,2]
[382971455,1756788659256,-480.0,0.0001452,2]
[382971456,1756788659265,-495.97,0.0001452,2]
[382971457,1756788659274,-1803.69,0.0001452,2]
[382971458,1756788659283,-480.0,0.0001452,2]
[382971459,1756788659293,-566.38339218,0.0001452,2]
[382971460,1756788659302,-2238.46,0.0001452,2]
[382971461,1756788659312,-480.0,0.0001452,2]
[382971462,1756788659322,-534.21,0.0001452,2]
[382971463,1756788659331,-480.0,0.0001452,2]
[382971464,1756788659340,-868.83,0.0001452,2]
[382971465,1756788659350,-1520.85,0.0001452,2]
[382971466,1756788659359,-480.0,0.0001452,2]
[382971467,1756788659369,-711.03,0.0001452,2]
[382971468,1756788659378,-507.41,0.0001452,2]
[382971469,1756788659387,-1133.24,0.0001452,2]
[382971470,1756788659397,-480.0,0.0001452,2]
[382971471,1756788659406,-480.0,0.0001452,2]
[382971472,1756788659416,-504.63924242,0.0001452,2]
[382971473,1756788659425,-512.11,0.0001452,2]
[382971474,1756788659435,-529.29,0.0001452,2]
[382971475,1756788659444,-508.5,0.0001452,2]
[382971476,1756788659453,-480.0,0.0001452,2]
[382971477,1756788659463,-480.0,0.0001452,2]
[382971478,1756788659472,-449.17137702,0.0001452,2]
[382971479,1756788659482,-847.13,0.0001452,2]
[382971480,1756788659491,-480.0,0.0001452,2]
[382971481,1756788659501,-601.52,0.0001452,2]
[382971482,1756788659511,-480.0,0.0001452,2]
[382971483,1756788659520,-566.97,0.0001452,2]
[382971484,1756788659530,-494.87,0.0001452,2]
[382971485,1756788659539,-480.0,0.0001452,2]
[382971486,1756788659549,-1602.18,0.0001452,2]
[382971487,1756788659562,-827.19,0.0001452,2]
[382971488,1756788659571,-480.0,0.0001452,2]
[382971489,1756788659581,-480.0,0.0001452,2]
[382971490,1756788659590,-11153.03227758,0.00014594,2]